bitfinex-derivatives/quotes_BTCF0:USTF0_20220103
["timestamp","ask_amount","ask_price","bid_price","bid_amount"]
[1641232064887,0.39419813,46688.0,46687.0,0.03121262]
[1641232065087,0.39419813,46688.0,46687.0,0.17154829]
[1641232065287,0.0001,46690.0,46687.0,0.17154829]
[1641232065486,0.0001,46690.0,46689.0,0.18]
[1641232067087,0.0001,46690.0,46687.0,0.17154829]
[1641232067287,0.0001,46690.0,46689.0,0.18]
[1641232067489,0.0001,46690.0,46689.0,0.376]
[1641232067889,0.0001,46700.0,46689.0,0.376]
[1641232068388,0.10685889,46699.0,46689.0,0.376]
[1641232068594,0.10685889,46699.0,46689.0,0.196]
[1641232068796,0.10685889,46699.0,46687.0,0.17154829]
[1641232068996,0.35856889,46699.0,46687.0,0.17154829]
[1641232069197,0.18,46695.0,46687.0,0.15012967]
[1641232069398,0.18,46695.0,46687.0,0.14033567]
[1641232069696,0.18,46690.0,46687.0,0.33633567]
[1641232070199,0.08059428,46689.0,46687.0,0.33633567]
[1641232070398,0.13822428,46689.0,46687.0,0.33633567]
[1641232071298,0.13822428,46689.0,46687.0,0.196]
[1641232071497,0.13822428,46689.0,46687.0,0.168]
[1641232072899,0.13822428,46689.0,46682.0,0.14033567]
[1641232073500,0.13822428,46689.0,46682.0,0.32333567]
[1641232074500,0.31822428,46689.0,46682.0,0.32333567]
[1641232074904,0.13822428,46689.0,46682.0,0.32333567]
[1641232075104,0.31822428,46689.0,46682.0,0.14033567]
[1641232075505,0.31822428,46689.0,46682.0,0.32633567]
[1641232076107,0.13822428,46689.0,46682.0,0.32633567]
[1641232076306,0.08059428,46689.0,46682.0,0.32633567]
[1641232076807,0.08059428,46689.0,46682.0,0.14033567]
[1641232077507,0.08059428,46689.0,46682.0,0.32633567]
[1641232078708,0.08059428,46689.0,46682.0,0.14033567]
[1641232079508,0.08059428,46689.0,46682.0,0.32633567]
[1641232080910,0.18,46688.0,46682.0,0.32633567]
[1641232081112,0.83130592,46686.0,46682.0,0.32633567]
[1641232081313,0.18,46684.0,46682.0,0.14033567]
[1641232081513,0.18,46684.0,46682.0,0.32933567]
[1641232082114,0.18,46684.0,46682.0,3.567e-05]
[1641232082314,0.001,46683.0,46673.0,0.14033567]
[1641232082515,0.18,46680.0,46673.0,0.14033567]
[1641232082715,0.25007,46680.0,46673.0,0.14033567]
[1641232082916,0.07007,46680.0,46673.0,0.14033567]
[1641232083319,0.14033567,46678.0,46671.0,0.02142698]
[1641232084118,0.08766067,46677.0,46671.0,0.02142698]
[1641232085517,0.26866067,46677.0,46671.0,0.19742698]
[1641232086822,0.83130592,46680.0,46676.0,0.20142323]
[1641232087021,0.83130592,46680.0,46676.0,0.29472323]
[1641232087620,0.015,46680.0,46676.0,0.48272323]
[1641232087823,0.015,46680.0,46679.0,0.18]
[1641232088023,0.015,46680.0,46678.0,0.18]
[1641232088523,0.015,46680.0,46676.0,0.30272323]
[1641232088921,0.83130592,46687.0,46678.0,0.18]
[1641232089524,0.83130592,46687.0,46678.0,0.196]
[1641232089723,0.05480908,46686.0,46678.0,0.196]
[1641232090828,0.05480908,46686.0,46676.0,0.02142323]
[1641232091428,0.07719,46687.0,46676.0,0.21442323]
[1641232091627,1.15164159,46688.0,46676.0,0.21442323]
[1641232092228,0.83130592,46687.0,46676.0,0.21442323]
[1641232092428,0.91503592,46687.0,46676.0,0.21442323]
[1641232092727,0.91503592,46687.0,46676.0,0.02142323]
[1641232092929,0.83130592,46686.0,46676.0,0.02142323]
[1641232093128,0.18,46685.0,46676.0,0.02142323]
[1641232093328,0.08928482,46684.0,46676.0,0.02142323]
[1641232093532,0.08928482,46684.0,46676.0,0.21342323]
[1641232094730,0.08928482,46684.0,46676.0,0.02142323]
[1641232095533,0.08928482,46684.0,46676.0,0.20942323]
[1641232096934,0.08928482,46684.0,46676.0,0.02142323]
[1641232097533,0.08928482,46684.0,46676.0,0.20942323]
[1641232098936,0.08928482,46684.0,46676.0,0.02142323]
[1641232099535,0.08928482,46684.0,46676.0,0.20942323]
[1641232100738,0.08928482,46684.0,46676.0,0.02142323]
[1641232101441,0.08928482,46684.0,46676.0,0.21342323]
[1641232101837,0.08928482,46684.0,46677.0,0.96700328]
[1641232102039,0.14033567,46688.0,46681.0,0.60370111]
[1641232102238,0.14033567,46688.0,46682.0,0.009794]
[1641232102837,0.14033567,46688.0,46684.0,0.60370111]
[1641232103240,0.14033567,46688.0,46687.0,0.02141962]
[1641232104942,0.14033567,46688.0,46687.0,0.9884229]
[1641232105543,0.14033567,46688.0,46687.0,1.0844229]
[1641232105943,0.14033567,46688.0,46687.0,1.68870235]
[1641232106544,0.14033567,46688.0,46687.0,1.75260235]
[1641232106745,0.14033567,46688.0,46687.0,1.65660235]
[1641232107844,0.14033567,46688.0,46687.0,1.59270235]
[1641232108244,0.14033567,46688.0,46687.0,1.0506929]
[1641232111550,0.14033567,46688.0,46687.0,1.1826929]
[1641232112349,0.14033567,46688.0,46687.0,1.1836929]
[1641232112749,0.14033567,46688.0,46687.0,0.21668962]
[1641232112950,0.14033567,46688.0,46687.0,0.08468962]
[1641232113151,0.14033567,46692.0,46687.0,0.02241962]
[1641232113350,0.14033567,46692.0,46687.0,0.02141962]
[1641232113750,0.14033567,46692.0,46687.0,0.19441962]
[1641232115154,0.14033567,46692.0,46687.0,0.02141962]
[1641232115553,0.14033567,46692.0,46687.0,0.16941962]
[1641232116974,0.14033567,46692.0,46687.0,0.02141962]
[1641232117171,0.83121927,46690.0,46687.0,0.02141962]
[1641232119477,0.83121927,46690.0,46689.0,0.02141608]
[1641232120380,0.97155494,46692.0,46689.0,0.02141608]
[1641232122382,0.18,46690.0,46684.0,0.62498535]
[1641232122584,0.18,46690.0,46684.0,0.02142087]
[1641232122783,0.18,46690.0,46683.0,0.60356448]
[1641232122985,0.18,46685.0,46683.0,0.60356448]
[1641232123484,0.188,46685.0,46683.0,0.60356448]
[1641232123684,0.14033567,46684.0,46680.0,1.20768496]
[1641232123884,0.38635666,46684.0,46679.0,0.60356448]
[1641232124283,0.20635666,46684.0,46679.0,0.60356448]
[1641232124683,0.83121927,46683.0,46675.0,0.76532508]
[1641232125585,0.177,46683.0,46676.0,0.96702828]
[1641232125786,0.177,46683.0,46681.0,0.60356448]
[1641232126786,0.20635666,46684.0,46681.0,0.60356448]
[1641232127588,0.39635666,46684.0,46681.0,0.60356448]
[1641232128687,0.39635666,46684.0,46682.0,0.60356448]
[1641232129189,0.20635666,46684.0,46682.0,0.60356448]
[1641232129490,0.39935666,46684.0,46682.0,0.60356448]
[1641232129890,0.39935666,46684.0,46683.0,0.60356448]
[1641232130792,0.20635666,46684.0,46683.0,0.60356448]
[1641232131390,0.20635666,46684.0,46681.0,1.20768496]
[1641232131590,0.39735666,46684.0,46681.0,1.20768496]
[1641232132190,0.33133567,46684.0,46681.0,1.20768496]
[1641232132493,0.33133567,46684.0,46683.0,0.60435298]
[1641232132891,0.14033567,46684.0,46683.0,0.60435298]
[1641232133294,0.20775733,46684.0,46683.0,0.60435298]
[1641232133595,0.39475733,46684.0,46680.0,2.17471324]
[1641232133793,0.39475733,46684.0,46682.0,0.96702828]
[1641232134494,0.39475733,46684.0,46680.0,2.17471324]
[1641232134696,0.39475733,46684.0,46681.0,0.60438298]
[1641232134895,0.20775733,46684.0,46681.0,0.60438298]
[1641232135595,0.39875733,46684.0,46681.0,0.60438298]
[1641232136898,0.20775733,46684.0,46681.0,0.60438298]
[1641232137599,0.39875733,46684.0,46682.0,0.60438298]
[1641232138401,0.39875733,46684.0,46679.0,0.02142299]
[1641232138902,0.20775733,46684.0,46679.0,0.02142299]
[1641232139501,0.32075733,46684.0,46679.0,0.11042299]
[1641232139703,0.25333567,46684.0,46679.0,0.11042299]
[1641232140803,0.14033567,46684.0,46679.0,0.62580597]
[1641232141204,0.14033567,46684.0,46679.0,0.02142299]
[1641232141606,0.26633567,46684.0,46679.0,0.12742299]
[1641232142005,0.07312825,46683.0,46679.0,0.12742299]
[1641232143003,0.07312825,46683.0,46679.0,0.02142299]
[1641232143504,0.25312825,46683.0,46679.0,0.12542299]
[1641232144206,0.31737825,46683.0,46679.0,0.12542299]
[1641232144407,0.18,46681.0,46679.0,0.104]
[1641232144807,0.18,46681.0,46677.0,0.60438298]
[1641232145008,0.18,46678.0,46674.0,1.20768496]
[1641232145508,0.373,46678.0,46676.0,0.6037592]
[1641232145707,0.14033567,46677.0,46673.0,1.20768496]
[1641232145910,0.18,46675.0,46673.0,1e-08]
[1641232146309,0.18,46675.0,46667.0,0.04142858]
[1641232146509,1.01055931,46675.0,46667.0,0.04142858]
[1641232147110,0.83055931,46675.0,46667.0,0.04142858]
[1641232147510,0.99055931,46675.0,46667.0,0.22642858]
[1641232147810,0.83055931,46673.0,46667.0,0.22642858]
[1641232148513,0.83055931,46673.0,46668.0,0.96713883]
[1641232148710,0.16,46675.0,46671.0,0.02142697]
[1641232149014,0.07254004,46676.0,46671.0,0.02142697]
[1641232149613,0.24754004,46676.0,46671.0,0.20242697]
[1641232150431,0.175,46676.0,46671.0,0.20242697]
[1641232150830,0.97089498,46677.0,46674.0,0.0214256]
[1641232151035,1.04939531,46677.0,46674.0,0.0214256]
[1641232151630,1.23939531,46677.0,46674.0,0.0214256]
[1641232151831,0.408836,46677.0,46674.0,0.0214256]
[1641232152831,0.218836,46677.0,46674.0,0.0214256]
[1641232153635,1.24039531,46677.0,46674.0,0.0214256]
[1641232155035,1.04939531,46677.0,46674.0,0.0214256]
[1641232155235,0.97089498,46677.0,46674.0,0.0214256]
[1641232155634,1.16189498,46677.0,46674.0,0.0214256]
[1641232156138,0.33133567,46677.0,46674.0,0.0214256]
[1641232156736,0.14033567,46677.0,46674.0,0.0214256]
[1641232157640,0.33133567,46677.0,46674.0,0.0214256]
[1641232158939,0.14033567,46677.0,46674.0,0.0214256]
[1641232159541,0.33033567,46677.0,46675.0,0.96709873]
[1641232160943,0.14033567,46677.0,46675.0,0.96709873]
[1641232161346,0.14033567,46677.0,46674.0,0.0214256]
[1641232161544,0.83285289,46676.0,46674.0,0.0214256]
[1641232163549,1.02285289,46676.0,46674.0,0.0214256]
[1641232164349,0.09913763,46675.0,46674.0,0.0214256]
[1641232165453,0.28813763,46675.0,46674.0,0.0214256]
[1641232165656,1.12099052,46675.0,46674.0,0.0214256]
[1641232167055,0.93199052,46675.0,46674.0,0.0214256]
[1641232167455,1.12199052,46675.0,46674.0,0.0214256]
[1641232168956,0.93199052,46675.0,46674.0,0.0214256]
[1641232169456,1.12099052,46675.0,46674.0,0.0214256]
[1641232171063,0.93199052,46675.0,46672.0,0.60386881]
[1641232171463,1.12299052,46675.0,46672.0,0.60386881]
[1641232171863,0.32033567,46673.0,46672.0,0.60386881]
[1641232172064,0.40251567,46673.0,46672.0,0.60386881]
[1641232172265,1.23536856,46673.0,46670.0,1.57086941]
[1641232172465,0.18,46671.0,46670.0,1.57086941]
[1641232172965,1.05536856,46673.0,46670.0,1.57086941]
[1641232173164,1.05536856,46673.0,46670.0,0.60386881]
[1641232173365,0.83285289,46671.0,46667.0,0.62386881]
[1641232175368,1.01285289,46671.0,46667.0,0.62386881]
[1641232175567,1.20485289,46671.0,46667.0,0.62386881]
[1641232176067,1.02485289,46671.0,46667.0,0.62386881]
[1641232176267,0.83285289,46670.0,46667.0,0.62386881]
[1641232177067,0.83285289,46670.0,46667.0,0.02]
[1641232177468,1.02585289,46670.0,46667.0,0.02]
[1641232178067,0.193,46670.0,46667.0,0.02]
[1641232179370,0.90934757,46672.0,46667.0,0.02]
[1641232179568,0.195,46670.0,46667.0,0.02]
[1641232180972,0.83285289,46672.0,46667.0,0.04142882]
[1641232181369,0.83285289,46672.0,46669.0,0.02142771]
[1641232181571,0.97285289,46672.0,46669.0,0.02142771]
[1641232181770,0.14,46672.0,46669.0,0.02142771]
[1641232182571,0.14,46672.0,46671.0,0.18]
[1641232182776,0.83285289,46674.0,46671.0,0.18]
[1641232182975,1.19353154,46676.0,46671.0,0.18]
[1641232183173,1.19353154,46676.0,46671.0,0.189794]
[1641232183374,1.19353154,46678.0,46671.0,0.189794]
[1641232183592,1.19353154,46678.0,46671.0,0.385794]
[1641232183989,1.06363154,46678.0,46675.0,0.18]
[1641232184196,0.14033567,46690.0,46677.0,0.02342279]
[1641232184390,0.02142498,46693.0,46681.0,0.18]
[1641232185492,0.02142498,46693.0,46681.0,0.372]
[1641232185891,0.02142498,46693.0,46686.0,0.14033567]
[1641232186495,0.18,46687.0,46681.0,0.33233567]
[1641232186693,0.18,46682.0,46681.0,0.33233567]
[1641232186893,0.26027,46682.0,46681.0,0.14033567]
[1641232187096,3.29120708,46682.0,46681.0,0.14033567]
[1641232187995,3.36820092,46682.0,46681.0,0.14033567]
[1641232191502,3.18820092,46682.0,46681.0,0.14033567]
[1641232191700,3.11120708,46682.0,46681.0,0.14033567]
[1641232193702,3.17196586,46682.0,46681.0,0.28833567]
[1641232195103,3.17196586,46682.0,46681.0,0.14033567]
[1641232200311,0.14102878,46682.0,46681.0,0.14033567]
[1641232205915,0.14102878,46682.0,46681.0,0.13383567]
[1641232206115,0.14102878,46682.0,46676.0,0.14033567]
[1641232206816,0.14102878,46682.0,46677.0,1.57068757]
[1641232207618,0.14102878,46682.0,46677.0,0.60378065]
[1641232207816,0.14102878,46682.0,46677.0,0.146]
[1641232207817,0.83285885,46678.0,46677.0,0.146]
[1641232208618,1.18979836,46680.0,46677.0,0.146]
[1641232209219,1.18979836,46680.0,46676.0,0.14033567]
[1641232209620,0.83326489,46678.0,46676.0,0.14033567]
[1641232209819,0.83326489,46678.0,46676.0,0.31333567]
[1641232210922,0.83326489,46677.0,46676.0,0.31333567]
[1641232211522,1.18979836,46678.0,46676.0,0.31333567]
[1641232211821,1.18979836,46678.0,46676.0,0.14033567]
[1641232212023,0.18,46677.0,46676.0,0.14033567]
[1641232213023,0.18,46677.0,46671.0,0.14033567]
[1641232213523,0.18,46674.0,46671.0,0.14033567]
[1641232213724,0.08521793,46673.0,46671.0,0.14033567]
[1641232214525,0.9185652,46673.0,46671.0,0.14033567]
[1641232215127,0.9185652,46673.0,46667.0,0.62378065]
[1641232215425,0.18,46668.0,46667.0,0.62378065]
[1641232215724,0.25838,46668.0,46667.0,0.62378065]
[1641232216525,0.07838,46668.0,46667.0,0.62378065]
[1641232216724,0.07838,46668.0,46667.0,0.02]
[1641232217728,1.10572727,46668.0,46667.0,0.02]
[1641232218828,0.27238,46668.0,46667.0,0.02]
[1641232219029,0.83334727,46669.0,46667.0,0.2]
[1641232219229,0.83334727,46669.0,46667.0,0.30410749]
[1641232219628,0.83334727,46671.0,46667.0,0.30410749]
[1641232219830,0.83334727,46671.0,46670.0,0.18]
[1641232220027,0.83334727,46671.0,46667.0,0.31210749]
[1641232220231,0.83334727,46671.0,46670.0,0.32033567]
[1641232220629,1.18979836,46673.0,46670.0,0.32033567]
[1641232220829,0.83334727,46675.0,46670.0,0.32033567]
[1641232221228,0.83334727,46675.0,46670.0,0.14033567]
[1641232221831,0.83334727,46676.0,46670.0,0.93311632]
[1641232222629,0.07208605,46677.0,46671.0,0.96695205]
[1641232222831,0.07208605,46677.0,46675.0,0.60378065]
[1641232223830,0.24808605,46677.0,46675.0,0.78878065]
[1641232225131,0.07208605,46677.0,46675.0,0.60378065]
[1641232225834,0.26308605,46677.0,46675.0,0.60378065]
[1641232227134,0.07208605,46677.0,46675.0,0.60378065]
[1641232227733,0.26108605,46677.0,46675.0,0.60378065]
[1641232229034,0.07208605,46677.0,46675.0,0.60378065]
[1641232229236,0.07208605,46677.0,46673.0,0.60378065]
[1641232229833,0.26508605,46677.0,46673.0,0.60378065]
[1641232230935,0.26508605,46677.0,46672.0,0.60378065]
[1641232231136,0.07208605,46677.0,46672.0,0.60378065]
[1641232231837,0.24308605,46677.0,46672.0,0.77678065]
[1641232233037,0.12087083,46676.0,46672.0,0.77678065]
[1641232233239,0.12087083,46676.0,46672.0,0.60378065]
[1641232233842,0.30687083,46676.0,46672.0,0.77078065]
[1641232234243,0.186,46676.0,46672.0,0.167]
[1641232235146,0.07208605,46677.0,46671.0,0.60378065]
[1641232235746,0.07208605,46677.0,46671.0,0.79678065]
[1641232236945,0.07208605,46677.0,46672.0,0.60378065]
[1641232237745,0.07208605,46677.0,46672.0,0.78978065]
[1641232237946,0.23408605,46677.0,46672.0,0.78978065]
[1641232238548,1.19115191,46673.0,46672.0,0.96978065]
[1641232239148,1.19115191,46673.0,46672.0,0.78378065]
[1641232239548,1.19115191,46673.0,46672.0,0.79357465]
[1641232239760,1.19115191,46673.0,46672.0,0.80057465]
[1641232240362,1.19115191,46673.0,46672.0,0.196794]
[1641232240564,1.19115191,46673.0,46672.0,1.16374356]
[1641232240764,1.19115191,46674.0,46672.0,1.16374356]
[1641232241163,1.19115191,46674.0,46672.0,0.97674356]
[1641232241762,1.37715191,46674.0,46672.0,0.181794]
[1641232242164,1.19115191,46673.0,46672.0,0.78594833]
[1641232243065,0.09850211,46673.0,46672.0,0.60415433]
[1641232243267,0.09850211,46673.0,46670.0,0.74449]
[1641232244068,0.28650211,46673.0,46670.0,0.90049]
[1641232244266,1.1911847,46671.0,46670.0,0.90049]
[1641232244468,1.2556147,46671.0,46670.0,0.90049]
[1641232245068,1.2556147,46671.0,46670.0,1.7115222]
[1641232245873,1.4466147,46671.0,46670.0,1.7115222]
[1641232246173,0.25543,46671.0,46670.0,0.14033567]
[1641232247174,0.06443,46671.0,46670.0,0.14033567]
[1641232247877,0.25643,46671.0,46670.0,0.14033567]
[1641232248679,1.44787666,46671.0,46670.0,1.711505]
[1641232249379,1.25587666,46671.0,46670.0,1.711505]
[1641232249980,1.44287666,46671.0,46670.0,1.873505]
[1641232250179,1.44287666,46671.0,46670.0,1.73316933]
[1641232250579,1.62287666,46671.0,46670.0,1.73316933]
[1641232250780,0.43143,46671.0,46670.0,0.76615433]
[1641232250980,0.43143,46671.0,46670.0,0.162]
[1641232251281,0.24443,46671.0,46668.0,0.60415433]
[1641232251479,1.37143,46671.0,46668.0,0.60415433]
[1641232251979,1.56443,46671.0,46668.0,0.60415433]
[1641232252381,1.56443,46671.0,46667.0,0.02]
[1641232252679,0.18,46668.0,46667.0,0.02]
[1641232252880,0.09350441,46668.0,46667.0,0.02]
[1641232253680,0.09350441,46668.0,46667.0,0.62415433]
[1641232253883,0.28850441,46668.0,46667.0,0.62415433]
[1641232254681,0.28850441,46668.0,46667.0,1.59125332]
[1641232255181,0.09350441,46668.0,46667.0,1.59125332]
[1641232255882,0.28750441,46668.0,46667.0,1.59125332]
[1641232257184,0.09350441,46668.0,46667.0,1.59125332]
[1641232257794,1.40050441,46668.0,46657.0,1.44776642]
[1641232257986,0.18,46658.0,46657.0,1.44776642]
[1641232258185,0.25964,46658.0,46657.0,1.44776642]
[1641232258684,0.366155,46658.0,46657.0,1.44776642]
[1641232258890,0.366155,46658.0,46655.0,1.12861348]
[1641232259987,0.555155,46658.0,46655.0,1.12861348]
[1641232260388,1.682155,46658.0,46652.0,0.14033567]
[1641232260588,1.127,46654.0,46652.0,0.14033567]
[1641232261190,0.18,46655.0,46652.0,0.14033567]
[1641232261786,0.06641305,46654.0,46652.0,0.14033567]
[1641232263287,0.06641305,46654.0,46646.0,1.9673]
[1641232263488,1.307,46652.0,46645.0,0.14033567]
[1641232265990,1.403,46652.0,46645.0,0.14033567]
[1641232267190,0.18,46649.0,46645.0,0.14033567]
[1641232267592,1.307,46646.0,46645.0,0.14033567]
[1641232267792,1.38522,46646.0,46645.0,0.14033567]
[1641232268194,1.45440361,46646.0,46645.0,0.14033567]
[1641232268393,0.32740361,46646.0,46645.0,0.14033567]
[1641232268593,0.14740361,46646.0,46645.0,0.14033567]
[1641232268892,0.06918361,46646.0,46645.0,0.14033567]
[1641232269493,0.06918361,46646.0,46640.0,0.14033567]
[1641232269894,0.25918361,46646.0,46640.0,0.14033567]
[1641232270295,1.47729361,46646.0,46640.0,0.14033567]
[1641232270493,0.18,46645.0,46640.0,0.14033567]
[1641232270695,1.127,46644.0,46640.0,0.14033567]
[1641232271096,0.18,46645.0,46640.0,0.14033567]
[1641232271493,0.98,46645.0,46640.0,0.14033567]
[1641232271695,1.127,46644.0,46640.0,0.14033567]
[1641232271893,0.354,46645.0,46640.0,0.14033567]
[1641232272797,1.127,46644.0,46640.0,0.14033567]
[1641232273197,0.18,46645.0,46640.0,0.14033567]
[1641232273397,0.18,46643.0,46640.0,0.14033567]
[1641232273811,0.06001704,46642.0,46640.0,0.14033567]
[1641232274115,1.18701704,46642.0,46640.0,0.14033567]
[1641232274313,0.06001704,46642.0,46641.0,0.96758269]
[1641232276013,1.37901704,46642.0,46641.0,0.96758269]
[1641232277413,1.18701704,46642.0,46641.0,0.96758269]
[1641232278012,1.87601704,46642.0,46639.0,1.20537614]
[1641232278213,1.307,46640.0,46639.0,1.20537614]
[1641232278414,1.307,46640.0,46638.0,1.20537614]
[1641232278613,1.307,46639.0,46638.0,1.20537614]
[1641232279613,0.14033567,46641.0,46638.0,1.20537614]
[1641232279815,0.33284982,46641.0,46634.0,1.20537614]
[1641232280016,0.196,46639.0,46634.0,1.20537614]
[1641232280814,0.07627472,46638.0,46634.0,1.20537614]
[1641232281016,0.07627472,46638.0,46635.0,1.20537614]
[1641232281715,0.83285333,46636.0,46635.0,1.20537614]
[1641232281917,0.83285333,46636.0,46635.0,0.145]
[1641232283417,0.83285333,46636.0,46631.0,0.14033567]
[1641232284017,0.97485333,46636.0,46631.0,0.32033567]
[1641232285920,0.84385333,46636.0,46631.0,0.32133567]
[1641232287034,0.1617818,46647.0,46635.0,0.18]
[1641232287224,0.1617818,46647.0,46636.0,0.009794]
[1641232287622,0.1617818,46647.0,46636.0,0.15012967]
[1641232288024,0.1617818,46647.0,46636.0,0.34012967]
[1641232288224,0.14033567,46647.0,46636.0,0.34012967]
[1641232288822,0.21395819,46651.0,46636.0,0.34012967]
[1641232289323,0.21395819,46651.0,46636.0,0.15012967]
[1641232289526,1.07196,46650.0,46636.0,0.15012967]
[1641232289724,1.07196,46650.0,46642.0,0.14033567]
[1641232290326,1.07196,46650.0,46644.0,0.60470894]
[1641232290527,0.19251415,46651.0,46645.0,0.009794]
[1641232290728,0.05393866,46663.0,46650.0,0.18]
[1641232290926,0.02143866,46663.0,46650.0,0.18]
[1641232291126,0.02143866,46663.0,46651.0,0.009794]
[1641232291328,0.23532183,46656.0,46651.0,0.009794]
[1641232291527,0.23532183,46656.0,46655.0,0.001]
[1641232291728,0.23532183,46656.0,46655.0,0.07481]
[1641232292428,1.83095003,46667.0,46655.0,0.07481]
[1641232292630,0.14033567,46667.0,46655.0,0.07481]
[1641232293429,0.14033567,46667.0,46656.0,1.54919261]
[1641232294031,0.14033567,46667.0,46656.0,1.73419261]
[1641232294432,0.14033567,46667.0,46657.0,0.60470894]
[1641232294634,0.14033567,46667.0,46658.0,0.009794]
[1641232294832,0.08409366,46661.0,46658.0,0.009794]
[1641232295834,0.08409366,46661.0,46658.0,0.61450294]
[1641232296032,0.08409366,46661.0,46658.0,0.80250294]
[1641232297835,0.08409366,46661.0,46658.0,0.61450294]
[1641232298034,0.08409366,46661.0,46658.0,0.80350294]
[1641232299337,0.08409366,46661.0,46658.0,0.61450294]
[1641232299539,0.08409366,46661.0,46658.0,0.009794]
[1641232299939,0.08409366,46661.0,46658.0,0.197794]
[1641232300439,1.19536796,46659.0,46658.0,0.197794]
[1641232301241,1.19536796,46659.0,46658.0,0.009794]
[1641232301942,1.19536796,46659.0,46658.0,0.198794]
[1641232302543,1.19536796,46659.0,46658.0,0.189]
[1641232303343,1.26313796,46659.0,46655.0,0.60470894]
[1641232304043,0.06777,46659.0,46655.0,0.79870894]
[1641232304243,0.06777,46659.0,46655.0,0.194]
[1641232304244,0.24777,46659.0,46655.0,0.194]
[1641232304845,0.06777,46659.0,46655.0,0.194]
[1641232305445,0.06777,46659.0,46654.0,0.60470894]
[1641232305643,0.06777,46659.0,46652.0,0.14033567]
[1641232306645,0.06777,46659.0,46653.0,1.57208755]
[1641232306646,0.24777,46659.0,46653.0,1.57208755]
[1641232306845,0.12777,46659.0,46653.0,1.57208755]
[1641232307045,0.24777,46659.0,46653.0,1.57208755]
[1641232307245,0.24777,46659.0,46653.0,0.60470894]
[1641232307646,0.24777,46659.0,46652.0,0.74504461]
[1641232308046,1.56277,46659.0,46652.0,0.60470894]
[1641232308346,2.198685,46658.0,46652.0,0.60470894]
[1641232308548,0.07180598,46657.0,46652.0,0.60470894]
[1641232308948,1.19880598,46657.0,46652.0,0.60470894]
[1641232309247,1.19880598,46657.0,46648.0,1.20910542]
[1641232309248,1.19880598,46657.0,46651.0,0.60470894]
[1641232309547,0.18,46656.0,46651.0,0.60470894]
[1641232309748,0.06,46652.0,46651.0,0.60470894]
[1641232309951,0.06,46652.0,46650.0,0.60470894]
[1641232309952,0.18,46652.0,46650.0,0.60470894]
[1641232310349,1.307,46652.0,46650.0,0.60470894]
[1641232310950,1.307,46652.0,46647.0,0.60470894]
[1641232311151,0.20144472,46650.0,46647.0,0.60470894]
[1641232311551,0.08918511,46649.0,46647.0,0.60470894]
[1641232311751,0.08918511,46649.0,46644.0,0.60470894]
[1641232311951,0.14033567,46648.0,46644.0,0.60470894]
[1641232312153,0.14033567,46648.0,46644.0,0.66470894]
[1641232312351,0.14033567,46648.0,46644.0,0.78470894]
[1641232312752,0.14033567,46648.0,46644.0,1.75227517]
[1641232313354,0.14033567,46648.0,46647.0,0.001]
[1641232313853,0.08918511,46649.0,46647.0,0.181]
[1641232314156,0.08918511,46649.0,46648.0,0.001]
[1641232314553,0.08918511,46649.0,46647.0,0.184]
[1641232315156,0.08918511,46649.0,46648.0,0.96756623]
[1641232315755,0.08918511,46649.0,46648.0,0.96856623]
[1641232315956,0.09918511,46649.0,46648.0,1.15056623]
[1641232316157,0.01,46649.0,46648.0,1.17200331]
[1641232316355,0.01,46649.0,46648.0,1.35200331]
[1641232316556,0.0001,46649.0,46648.0,1.35200331]
[1641232317359,0.14033567,46653.0,46648.0,1.17000331]
[1641232317558,0.14033567,46653.0,46648.0,1.16900331]
[1641232317760,0.14033567,46653.0,46649.0,0.18]
[1641232318358,0.14033567,46653.0,46650.0,0.96756623]
[1641232319058,0.06125545,46652.0,46650.0,0.96756623]
[1641232319459,0.06125545,46652.0,46649.0,1.38925106]
[1641232320162,0.06125545,46652.0,46649.0,1.57625106]
[1641232320862,0.06125545,46652.0,46650.0,0.96756623]
[1641232321763,0.06125545,46652.0,46650.0,2.17681729]
[1641232322162,0.06125545,46652.0,46650.0,2.36381729]
[1641232322365,0.06125545,46652.0,46650.0,1.39625106]
[1641232322564,0.89663044,46652.0,46650.0,0.187]
[1641232323266,0.83537499,46652.0,46650.0,0.187]
[1641232323466,0.83537499,46652.0,46649.0,0.78422336]
[1641232324066,0.83537499,46652.0,46649.0,0.97622336]
[1641232324269,0.05364182,46651.0,46650.0,0.60422336]
[1641232325268,0.05364182,46651.0,46650.0,1.57162309]
[1641232326072,0.05364182,46651.0,46650.0,1.76062309]
[1641232327270,0.05364182,46651.0,46650.0,1.57162309]
[1641232328073,0.83537499,46652.0,46650.0,1.76062309]
[1641232328773,0.83537499,46652.0,46650.0,0.79322336]
[1641232328974,0.10440391,46651.0,46650.0,0.79322336]
[1641232329374,0.10440391,46651.0,46650.0,0.60422336]
[1641232329785,0.10440391,46651.0,46649.0,0.78422336]
[1641232330186,0.83537499,46652.0,46650.0,0.189]
[1641232331487,0.83537499,46651.0,46650.0,0.79322336]
[1641232331688,0.83537499,46651.0,46650.0,0.97322336]
[1641232331987,0.83537499,46651.0,46650.0,0.78422336]
[1641232332188,0.83537499,46651.0,46650.0,0.97222336]
[1641232332388,0.28067134,46662.0,46650.0,0.99365859]
[1641232332588,0.14033567,46662.0,46659.0,0.18]
[1641232332789,2.32461235,46673.0,46660.0,0.009794]
[1641232333189,2.13111755,46673.0,46665.0,0.001]
[1641232333391,2.13111755,46673.0,46666.0,0.001]
[1641232333791,0.15135745,46672.0,46666.0,0.001]
[1641232333990,0.14033567,46669.0,46660.0,0.009794]
[1641232334190,0.14033567,46669.0,46666.0,0.131]
[1641232334792,0.12091361,46668.0,46666.0,0.131]
[1641232335391,0.06429544,46667.0,46666.0,0.131]
[1641232335591,0.06429544,46667.0,46666.0,0.001]
[1641232336192,0.06429544,46667.0,46666.0,0.056]
[1641232339094,0.25559133,46667.0,46666.0,0.056]
[1641232339295,0.13467544,46667.0,46666.0,0.056]
[1641232339494,0.13467544,46667.0,46660.0,0.60422336]
[1641232339695,0.25559133,46667.0,46660.0,0.60422336]
[1641232339896,0.13467544,46667.0,46660.0,0.60422336]
[1641232340094,0.31467544,46667.0,46660.0,0.78322336]
[1641232340496,0.31467544,46667.0,46660.0,0.179]
[1641232341396,0.13467544,46667.0,46657.0,0.02143344]
[1641232341996,0.13467544,46667.0,46656.0,0.60422336]
[1641232342197,0.06429544,46667.0,46658.0,0.32733567]
[1641232342597,0.12091964,46666.0,46658.0,0.32733567]
[1641232343498,0.12091964,46666.0,46658.0,0.14033567]
[1641232344098,0.29391964,46666.0,46658.0,0.31933567]